bitfinex/quotes_ETHUSD_20251006
["timestamp","ask_amount","ask_price","bid_price","bid_amount"]
[1759777607514,2.76207473,4698.2,4698.1,2.461]
[1759777608146,3.99207473,4698.2,4698.1,2.461]
[1759777609439,5.22207473,4698.2,4698.1,2.461]
[1759777609635,3.0936,4698.2,4698.1,2.9257]
[1759777610286,2.46,4698.2,4698.1,13.906367]
[1759777610466,2.46,4698.2,4698.1,13.728654]
[1759777610974,3.69,4698.2,4698.1,13.728654]
[1759777611342,3.69,4698.2,4698.1,13.703449]
[1759777612057,3.7964,4698.2,4698.1,13.703449]
[1759777612258,5.0264,4698.2,4698.1,10.291101]
[1759777612665,5.0264,4698.2,4698.1,12.742101]
[1759777613168,5.0264,4698.2,4698.1,10.342101]
[1759777613375,5.0264,4698.2,4698.1,12.159901]
[1759777613571,6.2564,4698.2,4698.1,12.159901]
[1759777613965,6.2564,4698.2,4698.1,6.803008]
[1759777614378,6.2564,4698.2,4698.1,11.910008]
[1759777614883,6.2564,4698.2,4698.1,5.721081]
[1759777615090,10.24847473,4698.2,4698.1,0.01]
[1759777615404,10.24847473,4698.2,4698.1,2.461]
[1759777615607,10.24847473,4698.2,4698.1,2.462]
[1759777615608,8.12,4698.2,4698.1,2.462]
[1759777615773,10.24847473,4698.2,4698.1,2.462]
[1759777616297,8.12,4698.2,4698.1,2.462]
[1759777616603,11.47847473,4698.2,4698.1,2.462]
[1759777617464,12.83916283,4698.2,4698.1,2.462]
[1759777617863,14.06916283,4698.2,4698.1,2.462]
[1759777618058,12.70847473,4698.2,4698.1,0.011]
[1759777618304,12.70847473,4698.2,4698.1,2.462]
[1759777618864,9.9464,4698.2,4698.1,6.565402]
[1759777619216,11.1764,4698.2,4698.1,7.650042]
[1759777619560,11.1764,4698.2,4698.1,8.114742]
[1759777620016,11.1764,4698.2,4698.1,9.049248]
[1759777620390,11.1764,4698.2,4698.1,7.599296]
[1759777620665,11.1764,4698.2,4698.1,0.011]
[1759777620666,16.49895833,4698.2,4698.1,0.011]
[1759777620970,16.92875833,4698.2,4698.1,2.462]
[1759777621173,15.59827473,4698.2,4698.1,2.462]
[1759777621371,15.16847473,4698.2,4698.1,2.462]
[1759777621788,13.04,4698.2,4698.1,0.011]
[1759777621986,13.04,4698.2,4698.1,2.9267]
[1759777621987,13.6364,4698.2,4698.1,2.9267]
[1759777622308,13.6364,4698.2,4698.1,16.92296704]
[1759777622309,13.53,4698.2,4698.1,16.92296704]
[1759777622516,13.53,4698.2,4698.1,27.75638704]
[1759777622811,13.53,4698.2,4698.1,32.33405104]
[1759777622960,13.055,4698.2,4698.1,37.56162004]
[1759777623398,28.43942062,4701.2,4698.2,2.4]
[1759777623596,0.1064,4700.0,4699.0,2.23451236]
[1759777623903,30.09597609,4701.2,4699.0,38.56520336]
[1759777624087,30.09597609,4701.2,4699.1,34.52806707]
[1759777624088,0.1064,4700.5,4699.1,34.52806707]
[1759777624394,0.1064,4700.5,4699.1,34.99296707]
[1759777625561,2.23383516,4700.5,4699.1,34.99296707]
[1759777625765,2.23383516,4700.5,4699.1,39.65496707]
[1759777626229,2.23383516,4700.5,4699.1,23.38784507]
[1759777626230,0.1064,4700.5,4699.1,23.38784507]
[1759777626395,0.1064,4700.1,4699.1,22.92294507]
[1759777626701,3.69,4699.2,4699.1,25.83884507]
[1759777627201,3.69,4699.2,4699.1,37.55036707]
[1759777628074,4.92,4699.2,4699.1,37.55036707]
[1759777629366,6.15,4699.2,4699.1,39.76036707]
[1759777629910,6.15,4699.2,4699.1,32.18612307]
[1759777630082,6.15,4699.2,4699.1,22.30541907]
[1759777630284,6.15,4699.2,4699.1,37.08446707]
[1759777630713,7.38,4699.2,4699.1,37.08446707]
[1759777631498,7.38,4699.2,4699.1,37.54936707]
[1759777632183,8.61,4699.2,4699.1,37.54936707]
[1759777633667,9.84,4699.2,4699.1,19.77336607]
[1759777634400,9.84,4699.2,4699.1,28.05921907]
[1759777634771,9.84,4699.2,4699.1,26.20706607]
[1759777634972,11.072,4699.2,4699.1,18.70783507]
[1759777635189,11.072,4699.2,4699.1,21.15783507]
[1759777635389,11.072,4699.2,4699.1,22.56916407]
[1759777636284,12.302,4699.2,4699.1,22.56916407]
[1759777636615,12.302,4699.2,4699.1,27.64737507]
[1759777637017,12.302,4699.2,4699.1,22.22560107]
[1759777637518,13.532,4699.2,4699.1,28.03380807]
[1759777637812,13.532,4699.2,4699.1,16.56182307]
[1759777637995,13.532,4699.2,4699.1,19.01182307]
[1759777638419,13.532,4699.2,4699.1,36.10017107]
[1759777639020,14.762,4699.2,4699.1,36.10017107]
[1759777639516,14.762,4699.2,4699.1,37.54936707]
[1759777639717,14.762,4699.2,4699.1,37.08446707]
[1759777640017,14.762,4699.2,4699.1,37.08346707]
[1759777640417,15.992,4699.2,4699.1,37.08346707]
[1759777640727,16.4626,4699.2,4699.1,8.91601]
[1759777640930,16.4626,4699.2,4699.1,6.683472]
[1759777641131,18.21546,4699.2,4699.1,6.683472]
[1759777641332,16.569,4699.2,4699.1,9.083472]
[1759777641498,16.569,4699.2,4699.1,15.816284]
[1759777641698,17.799,4699.2,4699.1,15.816284]
[1759777641927,17.799,4699.2,4699.1,12.280884]
[1759777642638,17.799,4699.2,4699.1,9.765558]
[1759777642848,17.3284,4699.2,4699.1,9.765558]
[1759777643053,17.222,4699.2,4699.1,9.765558]
[1759777643206,18.452,4699.2,4699.1,9.765558]
[1759777643608,18.452,4699.2,4699.1,14.789399]
[1759777643609,18.9226,4699.2,4699.1,14.789399]
[1759777643903,18.9226,4699.2,4699.1,5.960061]
[1759777644144,18.9226,4699.2,4699.1,8.409061]
[1759777644367,18.452,4699.2,4699.1,8.409061]
[1759777644643,19.682,4699.2,4699.1,15.329778]
[1759777644852,19.682,4699.2,4699.1,16.72816]
[1759777645001,19.682,4699.2,4699.1,14.27916]
[1759777645217,19.682,4699.2,4699.1,16.72816]
[1759777645615,19.682,4699.2,4699.1,13.165774]
[1759777645814,19.682,4699.2,4699.1,12.930902]
[1759777645815,20.912,4699.2,4699.1,12.930902]
[1759777646712,23.51062179,4699.2,4699.1,5.494642]
[1759777646914,23.51062179,4699.2,4699.1,7.349261]
[1759777646915,24.15302062,4699.2,4699.1,7.349261]
[1759777647249,27.51104241,4699.2,4699.1,7.349261]
[1759777647553,22.6126,4699.2,4699.1,7.349261]
[1759777647763,22.6126,4699.2,4699.1,4.849]
[1759777647764,22.142,4699.2,4699.1,4.849]
[1759777648131,24.74062179,4699.2,4699.1,4.849]
[1759777648639,23.8426,4699.2,4699.1,4.849]
[1759777648948,23.8426,4699.2,4699.1,13.221799]
[1759777649112,25.97062179,4699.2,4699.1,8.957842]
[1759777649512,25.97062179,4699.2,4699.1,7.76139]
[1759777649722,23.372,4699.2,4699.1,13.665849]
[1759777649922,23.372,4699.2,4699.1,26.658871]
[1759777650171,24.602,4699.2,4699.1,26.658871]
[1759777650962,24.602,4699.2,4699.1,25.945466]
[1759777651336,24.602,4699.2,4699.1,13.825211]
[1759777651558,26.3026,4699.2,4699.1,11.869251]
[1759777651762,25.832,4699.2,4699.1,4.849]
[1759777652975,27.062,4699.2,4699.1,22.446662]
[1759777653131,27.062,4699.2,4699.1,18.920833]
[1759777653885,27.062,4699.2,4699.1,18.921833]
[1759777654161,28.292,4699.2,4699.1,18.921833]
[1759777654341,28.292,4699.2,4699.1,18.114333]
[1759777654955,28.292,4699.2,4699.1,17.131833]
[1759777655547,29.522,4699.2,4699.1,15.714333]
[1759777657065,30.752,4699.2,4699.1,2.45]
[1759777657532,31.1799,4699.2,4699.1,3.153772]
[1759777657733,35.44474241,4699.2,4699.1,5.361773]
[1759777657939,33.42312062,4699.2,4699.1,5.523452]
[1759777658262,30.8584,4699.2,4699.1,5.523452]
[1759777658438,32.0884,4699.2,4699.1,5.523452]
[1759777658769,32.5163,4699.2,4699.1,5.523452]
[1759777658972,32.5163,4699.2,4699.1,14.948359]
[1759777660062,32.0884,4699.2,4699.1,16.365859]
[1759777660262,33.212,4699.2,4699.1,16.365859]
[1759777660574,33.212,4699.2,4699.1,12.44811]
[1759777660760,33.212,4699.2,4699.1,12.197028]
[1759777660937,33.212,4699.2,4699.1,17.364342]
[1759777661672,34.442,4699.2,4699.1,17.364342]
[1759777662172,34.442,4699.2,4699.1,15.364342]
[1759777662948,35.672,4699.2,4699.1,4.849]
[1759777663477,35.672,4699.2,4699.1,17.565342]
[1759777663779,35.672,4699.2,4699.1,18.982842]
[1759777664076,35.672,4699.2,4699.1,4.849]
[1759777664380,35.672,4699.2,4699.1,6.97706707]
[1759777664684,36.902,4699.2,4699.1,7.08346707]
[1759777664982,36.902,4699.2,4699.1,26.70873307]
[1759777665193,36.902,4699.2,4699.1,11.563197]
[1759777665361,36.902,4699.2,4699.1,9.069083]
[1759777665884,38.132,4699.2,4699.1,9.069083]
[1759777666082,38.5599,4699.2,4699.1,2.401]
[1759777666294,38.6663,4699.2,4699.1,2.401]
[1759777666496,38.6663,4699.2,4699.1,4.849]
[1759777666683,38.6663,4699.2,4699.1,11.619564]
[1759777666886,38.6663,4699.2,4699.1,6.065294]
[1759777667193,40.02615459,4699.2,4699.1,8.676861]
[1759777667492,41.25615459,4699.2,4699.1,4.849]
[1759777667697,42.02432179,4699.2,4699.1,4.849]
[1759777668191,39.8963,4699.2,4699.1,7.131527]
[1759777668699,40.6984,4699.2,4699.1,7.131527]
[1759777668918,40.6984,4699.2,4699.1,7.146492]
[1759777669395,40.6984,4699.2,4699.1,9.029926]
[1759777670002,41.1263,4699.2,4699.1,8.12732]
[1759777670192,42.3563,4699.2,4699.1,4.849]
[1759777670496,44.48432179,4699.2,4699.1,4.849]
[1759777670866,42.3563,4699.2,4699.1,4.849]
[1759777671381,42.3563,4699.2,4699.1,12.558128]
[1759777671592,43.5863,4699.2,4699.1,12.537089]
[1759777672294,43.052,4699.2,4699.1,29.16582207]
[1759777672482,43.052,4699.2,4699.1,24.62350007]
[1759777672888,44.282,4699.2,4699.1,24.51710007]
[1759777673090,44.282,4699.2,4699.1,24.98650007]
[1759777673303,44.282,4699.2,4699.1,37.44646707]
[1759777673597,44.282,4699.2,4699.1,39.65646707]
[1759777674006,44.282,4699.2,4699.1,10.25344]
[1759777674203,45.512,4699.2,4699.1,39.65646707]
[1759777675380,45.512,4699.2,4699.1,37.44546707]
[1759777675697,46.742,4699.2,4699.1,37.44546707]
[1759777676196,46.742,4699.2,4699.1,7.44546707]
[1759777676435,46.742,4699.2,4699.1,37.44546707]
[1759777677002,47.972,4699.2,4699.1,37.44546707]
[1759777678301,49.202,4699.2,4699.1,36.97606707]
[1759777678603,49.202,4699.2,4699.1,37.44546707]
[1759777679005,49.202,4699.2,4699.1,38.96806369]
[1759777679669,50.432,4699.2,4699.1,38.96806369]
[1759777681214,51.662,4699.2,4699.1,38.96806369]
[1759777681399,51.662,4699.2,4699.1,36.748887]
[1759777681599,51.662,4699.2,4699.1,39.65646707]
[1759777682000,51.662,4699.2,4699.1,39.18706707]
[1759777682218,51.662,4699.2,4699.1,40.70793007]
[1759777682514,45.28328821,4699.2,4699.1,39.65546707]
[1759777682683,46.51328821,4699.2,4699.1,40.1350231]
[1759777682884,46.51328821,4699.2,4699.1,35.5844231]
[1759777683085,46.51328821,4699.2,4699.1,40.2414231]
[1759777683412,40.13457642,4699.2,4699.1,40.2414231]
[1759777683892,40.13457642,4699.2,4699.1,39.29246707]
[1759777684098,41.36457642,4699.2,4699.1,39.29246707]
[1759777684700,41.36457642,4699.2,4699.1,39.73216707]
[1759777685414,42.59457642,4699.2,4699.1,39.73216707]
[1759777686707,42.59457642,4699.2,4699.1,35.07516707]
[1759777686895,43.82457642,4699.2,4699.1,35.07516707]
[1759777687221,43.82457642,4699.2,4699.1,39.29146707]
[1759777687821,0.002,4699.6,4699.5,2.12788594]
[1759777688119,0.002,4699.6,4699.5,9.20428594]
[1759777688322,0.002,4699.6,4699.5,9.64398594]
[1759777688525,0.002,4699.6,4699.5,40.12354197]
[1759777689408,1.232,4699.6,4699.5,40.12354197]
[1759777689991,1.232,4699.6,4699.5,41.41428594]
[1759777690202,1.232,4699.6,4699.5,36.75828594]
[1759777690398,1.232,4699.6,4699.5,42.93248231]
[1759777690809,2.462,4699.6,4699.5,41.41328594]
[1759777692338,3.692,4699.6,4699.5,41.85298594]
[1759777692506,3.692,4699.6,4699.5,42.33254197]
[1759777692710,0.002,4699.7,4699.6,5.00739669]
[1759777692930,0.002,4699.7,4699.6,35.44709669]
[1759777693717,1.232,4699.7,4699.6,35.44709669]
[1759777694130,1.232,4699.7,4699.6,35.00739669]
[1759777694303,1.232,4699.7,4699.6,40.10209669]
[1759777694713,1.232,4699.7,4699.6,39.66239669]
[1759777695129,2.462,4699.7,4699.6,39.66239669]
[1759777695338,2.462,4699.7,4699.6,36.98957338]
[1759777695538,2.462,4699.7,4699.6,39.18284066]
[1759777696240,2.8973,4699.7,4699.6,10.383703]
[1759777696410,4.1273,4699.7,4699.6,12.828703]
[1759777696613,3.692,4699.7,4699.6,37.07924066]
[1759777697828,1.23,4700.7,4700.0,0.6336]
[1759777698068,1.23,4700.7,4700.6,3.64568175]
[1759777698357,1.23,4700.7,4700.6,39.57594402]
[1759777699012,1.23,4700.7,4700.6,40.01564402]
[1759777699316,0.01,4701.9,4700.6,40.01564402]
[1759777699317,25.7313,4701.2,4700.7,5.00689876]
[1759777699647,0.4353,4701.1,4701.0,2.12720697]
[1759777699814,0.4353,4701.1,4701.0,29.24112497]
[1759777700016,0.4353,4701.1,4701.0,29.14595297]
[1759777700234,0.4353,4701.1,4701.0,22.722629]
[1759777700444,0.4353,4701.1,4701.0,4.84198006]
[1759777700445,4.69928234,4701.1,4701.0,4.84198006]
[1759777700767,3.80212062,4701.1,4701.0,4.133002]
[1759777700921,2.12721471,4701.0,4700.2,2.124]
[1759777701120,0.4353,4700.9,4700.4,2.4]
[1759777701422,0.4353,4700.8,4700.6,2.4]
[1759777701622,0.4353,4700.8,4700.7,9.670715]
[1759777701828,3.36682062,4701.1,4700.8,2.4]
[1759777702121,2.13682062,4701.0,4700.9,5.527557]
[1759777702321,2.13682062,4701.0,4700.9,9.682897]
[1759777702322,2.57212062,4701.0,4700.9,9.682897]
[1759777702727,2.57212062,4701.0,4700.9,7.954557]
[1759777703033,4.69932759,4701.0,4700.9,7.954557]
[1759777703233,4.69932759,4701.0,4700.9,9.290162]
[1759777703560,5.92932759,4701.0,4700.9,4.844]
[1759777703861,3.80212062,4701.0,4700.9,7.311557]
[1759777704568,3.80212062,4701.0,4700.9,11.380141]
[1759777704858,5.03212062,4701.0,4700.9,6.93231]
[1759777705063,7.15932759,4701.0,4700.9,4.48831]
[1759777705227,5.03212062,4701.0,4700.9,4.48831]
[1759777705433,5.03212062,4701.0,4700.9,4.844]
[1759777705651,5.03212062,4701.0,4700.9,5.601553]
[1759777705853,2.8953,4701.0,4700.9,8.045553]
[1759777706066,4.1253,4701.0,4700.9,7.578825]
[1759777706248,6.25250697,4701.0,4700.9,2.4]
[1759777706476,6.25250697,4701.0,4699.4,8.86289254]
[1759777706477,2.12741739,4700.6,4699.4,8.86289254]
[1759777706763,2.56255222,4700.9,4700.8,0.001]
[1759777706937,4.69937284,4700.9,4700.8,0.001]
[1759777707136,4.69937284,4700.9,4700.8,2.445]
[1759777707463,5.92937284,4700.9,4700.8,2.445]
[1759777707766,6.03577284,4700.9,4700.8,2.445]
[1759777708544,3.0017,4700.9,4700.8,22.219028]
[1759777708760,3.0017,4700.9,4700.8,20.764566]
[1759777708967,3.0017,4700.9,4700.8,7.986596]
[1759777709261,3.0017,4700.9,4700.8,2.445]
[1759777709465,5.12895222,4700.9,4700.8,2.445]
[1759777709767,7.26577284,4700.9,4700.8,2.445]
[1759777709937,6.36852062,4700.9,4700.8,2.445]
[1759777710544,8.49577284,4700.9,4700.8,2.445]
[1759777711381,9.72577284,4700.9,4700.8,2.445]
[1759777711877,7.59852062,4700.9,4700.8,2.445]
[1759777712249,9.72577284,4700.9,4700.8,2.445]
[1759777712777,9.72577284,4700.9,4700.8,0.001]
[1759777712968,10.95577284,4700.9,4700.8,2.445]
[1759777713466,6.6967,4700.9,4700.8,13.095376]
[1759777713780,6.6967,4700.9,4700.8,10.90026]
[1759777714480,7.4864,4700.9,4700.8,10.90026]
[1759777714675,7.9267,4700.9,4700.8,7.698446]
[1759777715666,9.1567,4700.9,4700.8,9.189277]
[1759777716054,8.7164,4700.9,4700.8,9.189277]
[1759777716589,8.7164,4700.9,4700.8,4.845]
[1759777716991,9.9464,4700.9,4700.8,4.845]
[1759777717496,9.9464,4700.9,4700.8,12.035798]
[1759777717654,9.9464,4700.9,4700.8,12.909798]
[1759777718769,11.1764,4700.9,4700.8,13.090198]
[1759777719001,11.1764,4700.9,4700.8,10.713683]
[1759777719658,11.1764,4700.9,4700.8,11.932754]
[1759777719859,11.1764,4700.9,4700.8,10.744354]
[1759777720183,12.4064,4700.9,4700.8,6.986224]
[1759777720391,14.53365222,4700.9,4700.8,6.986224]
[1759777720554,14.53365222,4700.9,4700.8,7.016125]
[1759777720757,12.4064,4700.9,4700.8,7.871345]
[1759777721093,12.4064,4700.9,4700.8,7.870345]
[1759777721259,12.4064,4700.9,4700.8,8.88218]
[1759777721758,13.6364,4700.9,4700.8,6.42018]
[1759777721991,13.6364,4700.9,4700.8,2.444]
[1759777722291,14.0937,4700.9,4700.8,2.444]
[1759777722998,15.3237,4700.9,4700.8,8.223215]
[1759777723294,15.3237,4700.9,4700.8,2.401]
[1759777723592,15.3237,4700.9,4700.8,4.844]
[1759777723800,14.8664,4700.9,4700.8,4.844]
[1759777724397,16.0964,4700.9,4700.8,11.371976]
[1759777725390,16.0964,4700.9,4700.8,16.005381]
[1759777725585,17.3264,4700.9,4700.8,16.005381]
[1759777725958,17.3264,4700.9,4700.8,15.885381]
[1759777726470,17.22,4700.9,4700.8,13.978212]
[1759777726657,17.22,4700.9,4700.8,16.420212]
[1759777726883,18.45,4700.9,4700.8,16.420212]
[1759777727386,18.45,4700.9,4700.8,4.723]
[1759777727757,18.45,4700.9,4700.8,16.69086]
[1759777727991,18.45,4700.9,4700.8,15.872764]
[1759777728567,19.68,4700.9,4700.8,16.166595]
[1759777728886,19.68,4700.9,4700.8,15.85189248]
[1759777729099,19.68,4700.9,4700.8,13.237122]
[1759777729305,19.68,4700.9,4700.8,2.281]
[1759777729473,19.68,4700.9,4700.8,7.732766]
[1759777729669,19.68,4700.9,4700.8,10.272046]
[1759777729880,20.91,4700.9,4700.8,10.057308]
[1759777730482,20.91,4700.9,4700.8,10.230325]
[1759777731104,20.91,4700.9,4700.8,6.020587]
[1759777731294,22.14,4700.9,4700.8,8.462587]
[1759777731494,22.14,4700.9,4700.8,9.903565]
[1759777731808,22.14,4700.9,4700.8,9.700964]
[1759777732521,23.37,4700.9,4700.8,15.091364]
[1759777732717,23.37,4700.9,4700.8,12.257197]
[1759777733205,23.37,4700.9,4700.8,4.723]
[1759777733409,23.37,4700.9,4700.8,7.483241]
[1759777733623,23.37,4700.9,4700.8,10.931371]
[1759777733790,23.37,4700.9,4700.8,10.719371]
[1759777733991,24.6,4700.9,4700.8,10.719371]
[1759777734710,24.6,4700.9,4700.8,4.723]
[1759777734911,24.6,4700.9,4700.8,13.398194]
[1759777735080,24.6,4700.9,4700.8,16.657336]
[1759777735411,25.83,4700.9,4700.8,16.657336]
[1759777735609,25.83,4700.9,4700.8,20.156572]
[1759777735813,25.83,4700.9,4700.8,18.761889]
[1759777736391,25.83,4700.9,4700.8,17.188758]
[1759777736574,27.06,4700.9,4700.8,12.863853]
[1759777737211,27.06,4700.9,4700.8,5.865418]
[1759777737413,27.06,4700.9,4700.8,8.083848]
[1759777737414,29.19682062,4700.9,4700.8,8.083848]
[1759777737705,29.19682062,4700.9,4700.8,13.691109]
[1759777737881,28.29,4700.9,4700.8,13.109105]
[1759777738083,28.29,4700.9,4700.8,11.575026]
[1759777738495,28.29,4700.9,4700.8,8.818922]
[1759777738692,28.29,4700.9,4700.8,8.338827]
[1759777739013,28.3964,4700.9,4700.8,8.338827]
[1759777739210,29.6264,4700.9,4700.8,8.338827]
[1759777739574,29.6264,4700.9,4700.8,13.850123]
[1759777739773,29.6264,4700.9,4700.8,11.945824]
[1759777740589,30.8564,4700.9,4700.8,4.722]
[1759777741476,30.8564,4700.9,4700.8,14.144837]
[1759777741681,30.8564,4700.9,4700.8,14.145351]
[1759777741878,32.0864,4700.9,4700.8,14.145351]
[1759777742190,31.98,4700.9,4700.8,14.604951]
[1759777742592,31.98,4700.9,4700.8,16.73224848]
[1759777742912,31.98,4700.9,4700.8,12.763867]
[1759777743411,33.21,4700.9,4700.8,12.532447]
[1759777743578,33.21,4700.9,4700.8,8.393062]
[1759777743784,33.21,4700.9,4700.8,13.338842]
[1759777743979,33.21,4700.9,4700.8,6.062102]
[1759777744211,35.92382062,4700.9,4700.8,8.503102]
[1759777744420,35.92382062,4700.9,4700.8,2.705363]
[1759777744601,35.92382062,4700.9,4700.4,0.001]
[1759777744803,2.12743325,4700.5,4700.4,0.001]
[1759777745002,2.23383325,4700.5,4700.4,2.442]
[1759777745332,4.84125387,4700.5,4700.4,2.442]
[1759777746215,6.07125387,4700.5,4700.4,2.442]
[1759777746521,6.07125387,4700.5,4700.4,0.001]
[1759777746910,6.07125387,4700.5,4700.4,2.442]
[1759777747602,7.30125387,4700.5,4700.4,0.001]
[1759777747918,7.30125387,4700.5,4700.4,2.442]
[1759777748727,7.30125387,4700.5,4700.4,0.001]
[1759777748905,7.30125387,4700.5,4700.4,2.442]
[1759777749106,8.53125387,4700.5,4700.4,2.442]
[1759777749318,8.53125387,4700.5,4700.4,0.001]
[1759777749704,8.53125387,4700.5,4700.4,0.438]
[1759777749905,8.53125387,4700.5,4700.4,0.001]
[1759777750112,8.72991366,4700.5,4700.4,0.001]
[1759777750314,9.95991366,4700.5,4700.4,0.013]
[1759777750532,14.39008047,4700.5,4700.4,0.013]
[1759777751642,14.39008047,4700.5,4700.4,0.001]
[1759777751950,14.39008047,4700.5,4700.4,0.013]
[1759777751951,15.62008047,4700.5,4700.4,0.013]
[1759777753224,12.22125387,4700.5,4700.4,0.013]
[1759777754530,13.45125387,4700.5,4700.4,0.013]
[1759777756050,14.68125387,4700.5,4700.4,0.013]
[1759777756751,14.68125387,4700.5,4700.4,0.001]
[1759777757340,15.91125387,4700.5,4700.4,0.001]
[1759777758854,17.14125387,4700.5,4700.4,0.001]
[1759777759630,16.56425387,4700.5,4700.4,0.001]
[1759777759949,16.67065387,4700.5,4700.4,0.001]
[1759777760153,17.90065387,4700.5,4700.4,0.001]
[1759777761423,15.76383325,4700.5,4700.4,0.001]
[1759777761619,14.76,4700.5,4700.4,0.001]
[1759777761825,14.76,4700.5,4700.4,0.4391]
[1759777761826,16.88743325,4700.5,4700.4,0.4391]
[1759777762023,16.88743325,4700.5,4700.4,0.001]
[1759777762245,16.88743325,4700.5,4700.4,2.441]
[1759777762446,16.88743325,4700.5,4700.4,0.001]
[1759777762641,18.68472212,4700.5,4700.4,2.086]
[1759777763260,19.91472212,4700.5,4700.4,2.086]
[1759777763554,19.44412212,4700.5,4700.4,2.441]
[1759777763928,19.44412212,4700.5,4700.4,2.8791]
[1759777764122,18.11743325,4700.5,4700.4,2.8791]
[1759777764360,15.99,4700.5,4700.4,2.8791]
[1759777764723,17.22,4700.5,4700.4,2.8791]
[1759777764924,19.34743325,4700.5,4700.4,2.8791]
[1759777765342,17.22,4700.5,4700.4,2.8791]
[1759777765737,19.34743325,4700.5,4700.4,2.8791]
[1759777766150,19.34743325,4700.5,4700.4,6.380162]
[1759777766151,18.45,4700.5,4700.4,6.380162]
[1759777767660,19.68,4700.5,4700.4,6.380162]
[1759777768066,19.68,4700.5,4700.4,14.520956]
[1759777768376,19.68,4700.5,4700.4,19.359956]
[1759777768747,20.91,4700.5,4700.4,19.359956]
[1759777768948,20.91,4700.5,4700.4,8.180793]
[1759777769157,20.91,4700.5,4700.4,4.84]
[1759777769579,20.91,4700.5,4700.4,15.907293]
[1759777770075,22.14,4700.5,4700.4,22.933701]
[1759777770263,22.14,4700.5,4700.4,14.368499]
[1759777770463,24.26743325,4700.5,4700.4,0.001]
[1759777770645,26.40425387,4700.5,4700.4,2.44]
[1759777770845,24.26743325,4700.5,4700.4,2.44]
[1759777771474,25.49743325,4700.5,4700.4,2.44]
[1759777771646,25.60383325,4700.5,4700.4,2.44]
[1759777773041,26.83383325,4700.5,4700.4,2.44]
[1759777773242,24.7064,4700.5,4700.4,2.8799]
[1759777773640,24.7064,4700.5,4700.4,7.10075]
[1759777773875,24.7064,4700.5,4700.4,7.118486]
[1759777774188,24.7064,4700.5,4700.4,5.757051]
[1759777774392,25.9364,4700.5,4700.4,5.757051]
[1759777774585,28.06383325,4700.5,4700.4,2.146725]
[1759777774786,2.12747851,4700.4,4700.3,0.001]
[1759777775307,28.06385585,4700.5,4700.3,2.44]
[1759777775468,2.12747851,4700.4,4700.3,2.44]
[1759777775666,2.12747851,4700.4,4700.3,0.001]
[1759777775883,2.12747851,4700.4,4700.3,2.44]
[1759777776354,4.26429913,4700.4,4700.3,0.001]
[1759777776554,4.71359913,4700.4,4700.3,0.001]
[1759777776790,4.71359913,4700.4,4700.3,2.44]
[1759777776992,5.49429913,4700.4,4700.3,2.44]
[1759777777696,3.36682062,4700.4,4700.3,2.44]
[1759777777933,1.23,4700.4,4700.3,20.259844]
[1759777778065,1.23,4700.4,4700.3,19.83543]
[1759777778256,1.23,4700.4,4700.3,19.004693]
[1759777778472,4.58747851,4700.4,4700.3,11.930196]
[1759777778656,4.58747851,4700.4,4700.3,11.353286]
[1759777778860,4.58747851,4700.4,4700.3,10.782286]
[1759777779085,4.58747851,4700.4,4700.3,7.188107]
[1759777779362,2.46,4700.4,4700.3,7.188107]
[1759777779802,3.69,4700.4,4700.3,7.623707]
[1759777779962,3.69,4700.4,4700.3,7.622707]
[1759777780471,3.69,4700.4,4700.3,21.490911]
[1759777780791,3.69,4700.4,4700.3,24.941534]
[1759777780991,3.69,4700.4,4700.3,23.944081]
[1759777781198,4.92,4700.4,4700.3,23.944081]
[1759777781910,4.92,4700.4,4700.3,4.855962]
[1759777782116,4.92,4700.4,4700.3,7.293962]
[1759777782480,6.15,4700.4,4700.3,14.541699]
[1759777782687,6.15,4700.4,4700.3,10.873935]
[1759777783379,6.15,4700.4,4700.3,4.839]
[1759777783802,6.15,4700.4,4700.3,2.439]
[1759777784023,7.38,4700.4,4700.3,6.537147]
[1759777784176,7.38,4700.4,4700.3,8.251452]
[1759777784682,7.38,4700.4,4700.3,13.949571]
[1759777784884,7.38,4700.4,4700.3,13.949527]
[1759777785187,7.38,4700.4,4700.3,11.873397]
[1759777785515,8.61,4700.4,4700.3,2.407492]
[1759777785909,8.61,4700.4,4700.3,4.845492]
[1759777786595,8.61,4700.4,4700.3,10.053636]
[1759777786780,9.84,4700.4,4700.3,9.482636]
[1759777787209,9.84,4700.4,4700.3,9.918236]
[1759777787597,9.84,4700.4,4700.3,13.691236]
[1759777787787,9.84,4700.4,4700.3,13.91376]
[1759777787988,9.84,4700.4,4700.3,13.47816]
[1759777788189,11.07,4700.4,4700.3,7.034828]
[1759777788604,11.07,4700.4,4700.3,17.096623]
[1759777788812,11.07,4700.4,4700.3,21.562166]
[1759777788997,4.69128821,4700.4,4700.3,37.83828849]
[1759777789222,4.69128821,4700.4,4700.3,42.03479488]
[1759777789223,4.17598821,4700.4,4700.3,42.03479488]
[1759777789531,27.06,4700.5,4700.4,35.41281123]
[1759777789532,18.35739026,4700.5,4700.4,35.41281123]
[1759777789899,18.35739026,4700.5,4700.4,35.16107851]